Cogmind - Beta 16 @@@ ROGUE MODE // 2025.10.25 @ 07:02:41 Player: AussieBBQ Result: Smashed by cave-in Performance ------------- Evolutions (0) 0 Regions Visited (3) 600 Robots Destroyed (22) 110 Value Destroyed (346) 346 Prototype IDs (24) 480 Alien Tech Used (0) 0 Bonus (300) 300 TOTAL SCORE: 1836 Bonus ------- Aligned with FarCom 300 Cogmind --------- Core Integrity 0/250 Matter 251/300 Energy 85/100 System Corruption 12% Temperature Cool (0) Movement Walking (260) Ox2 Location -10/Exiles Parts ------- > --- POWER (1) -------- (None) > --- PROPULSION (2) --- Aluminum Leg > --- UTILITY (2) ------ Large Storage Unit > --- WEAPON (2) ------- Improved Light Cannon > --- INVENTORY (15) --- Light Ion Engine Aluminum Leg Aluminum Leg Aluminum Leg Aluminum Leg Aluminum Leg Improved Heat Sink Large Battery (200) Large Matter Pod (95) Structural Scanner Improved Light Cannon AWS/Autocannon Peak State ------------ > --- POWER ------------ Light Ion Engine > --- PROPULSION ------- Aluminum Leg Aluminum Leg > --- UTILITY ---------- Large Storage Unit Seismic Detector > --- WEAPON ----------- Improved Light Cannon Improved Light Cannon > --- INVENTORY -------- Light Ion Engine Aluminum Leg Aluminum Leg Aluminum Leg Aluminum Leg Aluminum Leg Improved Heat Sink Large Battery Large Matter Pod Structural Scanner Improved Light Cannon Improved Light Cannon AWS/Autocannon [Rating: 13] Favorites ----------- Power Light Ion Engine Engine Light Ion Engine Propulsion Aluminum Leg Leg Aluminum Leg Utility Large Storage Unit Device Seismic Detector Storage Large Storage Unit Protection Power Shielding Weapon Improved Light Cannon Energy Gun Small Laser Ballistic Gun Assault Rifle Ballistic Cannon Improved Light Cannon Build | -11 -10 -10 -10 ------- Run | Yrd Mat Min Exi Slots Evolved . | . . . . Power . | . . . . Propulsion . | . . . . Utility . | . . . . Weapon . | . . . . Parts Attached 20 | . 13 7 . Power 4 | . 2 2 . Engine 4 | . 2 2 . Core . | . . . . Reactor . | . . . . Propulsion 4 | . 2 2 . Treads . | . . . . Leg 4 | . 2 2 . Wheel . | . . . . Hover . | . . . . Flight . | . . . . Utility 6 | . 4 2 . Device 3 | . 2 1 . Storage 2 | . 2 . . Processor . | . . . . Hackware . | . . . . Protection 1 | . . 1 . Artifact . | . . . . Weapon 6 | . 5 1 . Energy Gun 1 | . 1 . . Energy Cannon . | . . . . Ballistic Gun 2 | . 2 . . Ballistic Cannon 3 | . 2 1 . Launcher . | . . . . Special Weapon . | . . . . Impact Weapon . | . . . . Slashing Weapon . | . . . . Piercing Weapon . | . . . . Special Melee Weapon . | . . . . Unidentified Prototypes 1 | . 1 . . Parts Lost 6 | . 1 . 5 Power 2 | . 1 . 1 Propulsion 1 | . . . 1 Utility 1 | . . . 1 Weapon 2 | . . . 2 Highest Loss Streak 5 | . 1 . 5 To Critical Strikes . | . . . . Average Backups 13 | . 12 14 13 Power . | . . . 1 Propulsion 5 | . 5 4 5 Utility 3 | . 3 4 4 Weapon 4 | . 3 5 3 Tool/Special . | . . . . Unused Backups 13 | . 4 1 8 Power . | . . . . Propulsion 3 | . . . 3 Utility 2 | . . 1 1 Weapon 8 | . 4 . 4 Tool/Special . | . . . . Average Slot Usage (%) 99 | . 99 100 99 Engine 13 | . 14 14 13 Leg 27 | . 27 28 28 Device 12 | . 13 9 14 Storage 14 | . 14 14 14 Protection 1 | . . 4 . Ballistic Gun 14 | . 25 1 . Ballistic Cannon 12 | . . 26 28 Peak Build Rating 13 | . 10 12 13 Average Rating 9 | . 7 10 11 On Entrance 7 | 6 6 8 10 Avg Prop Armor Cover (%) . | . . . . Naked Turns . | . . . . Heaviest Build 32 | 11 32 32 32 Greatest Support 20 | 20 20 20 20 Greatest Overweight (x) 1 | . 1 1 1 Average Overweight (x) . | . . 1 1 Largest Inventory Capacity 15 | . 15 15 15 Average Capacity 14 | . 14 15 15 Most Carried 15 | . 15 15 15 Average Carried 13 | . 12 14 14 Final Capacity 15 | 8 15 15 15 Final Carried 15 | 6 15 15 14 Class Distribution -------------------- 90% | Mutant 9% | Scavenger-Mutant Dominant Class ---------------- Mutant | -10/Materials Mutant | -10/Mines Mutant | -10/Exiles Resources | -11 -10 -10 -10 ----------- Run | Yrd Mat Min Exi Matter Collected 862 | 167 292 403 . Remotely . | . . . . Salvage Created 605 | . 367 238 . Parts 51 | . 37 14 . Haulers Intercepted 1 | . 1 . . Recyclers Shooed 3 | . 2 1 . Parts Field Recycled . | . . . . Retrieved Matter . | . . . . Parts Self-Destructed . | . . . . Prevented . | . . . . Parts Restored . | . . . . Kills | -11 -10 -10 -10 ------- Run | Yrd Mat Min Exi Combat Hostiles Destroyed 14 | . 9 5 . Guns 9 | . 9 . . Cannons 5 | . . 5 . Classes Destroyed 6 | . 6 . . Builder 1 | . 1 . . Hauler 1 | . 1 . . Recycler 3 | . 1 2 . Watcher 3 | . 3 . . Swarmer 9 | . 6 3 . Grunt 5 | . 3 2 . Best Kill Streak 5 | . 3 5 . Combat Bots Only 4 | . 3 4 . Max Kills in Single Turn 1 | . 1 1 . Gunslinging . | . . . . Exploded . | . . . . Melee . | . . . . Uniques/NPCs Destroyed . | . . . . Combat | -11 -10 -10 -10 -------- Run | Yrd Mat Min Exi Hostile Shots Fired 102 | . 58 33 11 Missed 33 | . 16 12 5 Hits 69 | . 42 21 6 Melee 6 | . . . 6 Projectile 63 | . 42 21 . Damage Taken 1397 | . 382 239 776 Core 291 | . 62 54 175 Absorbed by Shields . | . . . . Redirected to Shielding 5 | . . 5 . Regen/Repaired (Parts) 68 | . 68 . . Core Remaining (%) 100 | 100 . . . Volleys Fired 63 | . 43 12 8 Largest 2 | . 2 2 2 Hottest 66 | . 66 66 66 Shots Fired 126 | . 86 24 16 Gun 84 | . 84 . . Cannon 42 | . 2 24 16 Launcher . | . . . . Special . | . . . . Kinetic 122 | . 82 24 16 Thermal 4 | . 4 . . Explosive . | . . . . Electromagnetic . | . . . . Robot Hit Streak 9 | . 9 6 . Robot Miss Streak 8 | . 4 8 . Penetration Max . | . . . . Secondary Targets . | . . . . Shots Hit Robots 62 | . 51 11 . Core Hits 33 | . 25 8 . Critical Kills . | . . . . Critical Parts Destroyed . | . . . . Critical Strikes 1 | . . 1 . Blast 1 | . . 1 . Melee Attacks . | . . . . Impact . | . . . . Slashing . | . . . . Piercing . | . . . . Sneak Attacks . | . . . . Combat Hostiles . | . . . . Follow-up Attacks . | . . . . Damage Inflicted 903 | . 589 314 . Guns 542 | . 542 . . Cannons 338 | . 24 314 . Explosions . | . . . . Melee . | . . . . Ramming 23 | . 23 . . Kinetic 839 | . 525 314 . Thermal 41 | . 41 . . Explosive . | . . . . Electromagnetic . | . . . . Impact . | . . . . Slashing . | . . . . Piercing . | . . . . Highest Corruption 8 | . . . 8 Average Corruption 8 | . . . 8 Corruption Purged . | . . . . Corruption Blocked . | . . . . Overload Shots . | . . . . Overflow Damage 1 | . . 1 . Projectiles 1 | . . 1 . Explosions . | . . . . Melee . | . . . . Knockbacks 5 | . . 5 . Impact . | . . . . Kinetic 5 | . . 5 . Secondary . | . . . . Self-Inflicted Damage . | . . . . Shots . | . . . . Rammed . | . . . . Targets Rammed 7 | . 7 . . Kicked 7 | . 7 . . Crushed . | . . . . Highest Temperature 53 | . 12 53 6 Average Temperature 15 | . 6 20 3 Received Heat Transfer 162 | . 72 90 . Siege Activations . | . . . . Martial Activations . | . . . . Shielding Activations . | . . . . Robots Disrupted . | . . . . Combat Hostiles . | . . . . Robots Corrupted . | . . . . Combat Hostiles . | . . . . Parts Fried . | . . . . Impact Corruptions . | . . . . Robots Melted . | . . . . Combat Hostiles . | . . . . Parts Melted . | . . . . Heat Transferred 100 | . 100 . . Parts Sabotaged . | . . . . Parts Stolen . | . . . . Parts Stripped . | . . . . Power Chain Reactions . | . . . . Alert | -11 -10 -10 -10 ------- Run | Yrd Mat Min Exi Maximum Alert Level . | . . . . Low Security (%) 100 | . 100 100 . Level 1 . | . . . . Level 2 . | . . . . Level 3 . | . . . . Level 4 . | . . . . Level 5 . | . . . . High Security . | . . . . Max Security . | . . . . Peak Influence 97 | . 82 97 . Initial . | . . . . Average 19 | . 16 24 . Influence Increases 524 | . 332 192 . Destroy 0b10 Robot/C 280 | . 180 100 . Destroy 0b10 Robot/NC 40 | . 30 10 . Destroy Leader 68 | . 48 20 . Successful Hack 29 | . 29 . . Destroy Structure 2 | . . 2 . Lose Combat Pursuer 105 | . 45 60 . Influence Decreases 524 | . 332 192 . Time Decay 514 | . 322 192 . Lost Part 10 | . 10 . . Squads Dispatched 2 | . 2 . . Investigation . | . . . . Extermination . | . . . . Reinforcement 2 | . 2 . . Assault . | . . . . Garrison . | . . . . Intercept . | . . . . Searches Triggered . | . . . . Construction Impeded . | . . . . Haulers Reinforced . | . . . . Active Scanning Responses . | . . . . Cargo Convoy Interrupts . | . . . . Stealth | -11 -10 -10 -10 --------- Run | Yrd Mat Min Exi Distress Signals . | . . . . Communications Jammed . | . . . . Distress Signals . | . . . . Times Spotted 30 | . 19 9 2 Peak Tracking Total 11 | . 3 5 11 Tactical Retreats 5 | . 2 2 1 Traps | -11 -10 -10 -10 ------- Run | Yrd Mat Min Exi Traps Triggered . | . . . . Indirectly . | . . . . Trap Hack Attempts . | . . . . Triggered . | . . . . Disarmed . | . . . . Reprogrammed . | . . . . Reused . | . . . . Traps Extracted . | . . . . Installed . | . . . . Triggered . | . . . . Machines | -11 -10 -10 -10 ---------- Run | Yrd Mat Min Exi Machines Disabled 1 | . . . 1 Max in Single Turn 1 | . . . 1 Machines Repaired . | . . . . Machines Dismantled . | . . . . Machines Sabotaged . | . . . . Overloaded Fab Kills . | . . . . Hacking | -11 -10 -10 -10 --------- Run | Yrd Mat Min Exi Machines Accessed 9 | . 8 . 1 Terminals 5 | . 5 . . Fabricators . | . . . . Repair Stations 1 | . 1 . . Recycling Units 2 | . 2 . . Scanalyzers . | . . . . Garrison Access . | . . . . Total Hacks 26 | . 25 . 1 Successful 19 | . 18 . 1 Failed 6 | . 6 . . Catastrophic 1 | . 1 . . Database Lockouts 1 | . 1 . . Manual 14 | . 13 . 1 Terminals 16 | . 16 . . Fabricators . | . . . . Repair Stations 5 | . 5 . . Recycling Units 4 | . 4 . . Scanalyzers . | . . . . Garrison Access . | . . . . Terminal Hacks 9 | . 8 . 1 Robot Analysis 5 | . 5 . . Terminal Index 1 | . 1 . . Locate Traps 1 | . 1 . . Recall Investigation 1 | . 1 . . Proto ID Catalog 1 | . . . 1 Fabricator Hacks . | . . . . Repair Station Hacks 5 | . 5 . . Scan Component 3 | . 3 . . Repair 2 | . 2 . . Recycling Unit Hacks 1 | . 1 . . Retrieve Components 1 | . 1 . . Scanalyzer . | . . . . Garrison Access Hacks . | . . . . Unauthorized Hacks 4 | . 4 . . Terminals 2 | . 2 . . Botnet 2 | . 2 . . Fabricators . | . . . . Repair Stations . | . . . . Recycling Units 2 | . 2 . . Reject 1 | . 1 . . Mask 1 | . 1 . . Scanalyzers . | . . . . Garrison Access . | . . . . Data Cores Recovered . | . . . . Used . | . . . . Hacking Detections 8 | . 8 . . Full Trace Events 1 | . 1 . . Feedback Events . | . . . . Feedback Blocked . | . . . . Robot Schematics Acquired . | . . . . Robots Built . | . . . . Authchips . | . . . . Time . | . . . . Total Robot Build Rating . | . . . . Part Schematics Acquired . | . . . . Parts Built . | . . . . Authchips . | . . . . Time . | . . . . Total Part Build Rating . | . . . . Part Studies Acquired . | . . . . Parts Repaired 2 | . 2 . . Time 52 | . 52 . . Parts Recycled . | . . . . Recycled Matter . | . . . . Retrieved Matter . | . . . . Retrieved Components 10 | . 10 . . Parts Scanalyzed . | . . . . Part Schematics Acquired . | . . . . Parts Damaged . | . . . . Bothacking | -11 -10 -10 -10 ------------ Run | Yrd Mat Min Exi Used RIF Installer . | . . . . Robots Hacked . | . . . . Non-combat . | . . . . Combat . | . . . . Robot Hacks Applied . | . . . . Relay Couplers Released . | . . . . Fabnet Peak Effective % . | . . . . Robots Rewired . | . . . . Allies Hacked . | . . . . Hacks Repelled . | . . . . Allies | -11 -10 -10 -10 -------- Run | Yrd Mat Min Exi Total Allies . | . . . . Largest Group . | . . . . Highest-Rated Group . | . . . . Highest-Rated Ally . | . . . . Total Orders . | . . . . Ally Attacks . | . . . . Total Damage . | . . . . Kills . | . . . . Allies Corrupted . | . . . . Allies Melted . | . . . . Intel | -11 -10 -10 -10 ------- Run | Yrd Mat Min Exi Active Infowar (turns) 2570 | . 1724 262 584 Structural 914 | . 914 . . Seismic 1656 | . 810 262 584 Robot Analysis Total 5 | . 5 . . Derelict Logs Recovered 1 | . . 1 . Drone Launches . | . . . . Drone Recoveries . | . . . . Exploration | -11 -10 -10 -10 ------------- Run | Yrd Mat Min Exi Turns Passed 3087 | . 1753 748 586 Spaces Moved 1486 | 1 826 365 294 Core . | . . . . Treads . | . . . . Legs 1486 | 1 826 365 294 Wheels . | . . . . Hover . | . . . . Flight . | . . . . Fastest Speed 120 | 120 120 190 190 Average Speed 184 | 120 179 190 190 Slowest Speed 190 | 120 190 190 190 Overloaded Moves . | . . . . Propulsion Burnouts . | . . . . Robots Hopped . | . . . . Potential Cave-ins 4 | . . . 4 Cave-ins Triggered 3 | . . . 3 Exploration Rate (%) 62 | 2 85 87 76 Regions Visited 3 Branch Regions 2 Pre-discovered Areas 1 | . . 1 . Known Exits Taken . | . . . . Unknown Exits Taken 3 | 1 1 1 . Scrap Searched 2 | . . 2 . Spaces Dug 7 | . . . 7 Terrain Destroyed 9 | . . 2 7 Melee . | . . . . Projectile 9 | . . 2 7 AOE . | . . . . Terrain Rammed . | . . . . Walls Destroyed . | . . . . Machines Disabled . | . . . . Actions | -11 -10 -10 -10 --------- Run | Yrd Mat Min Exi Total 1718 | . 1010 401 307 Wait 94 | . 94 . . Move 1483 | . 825 364 294 Hop . | . . . . Pick Up 17 | . 11 5 1 Fast Attach 8 | . 7 1 . Attach 2 | . 1 . 1 Detach 4 | . 3 1 . Swap 19 | . 11 8 . Drop 21 | . 8 10 3 Fire 63 | . 43 12 8 Melee . | . . . . Ram . | . . . . Kick 7 | . 7 . . Crush . | . . . . Escape Stasis . | . . . . Rewire . | . . . . Trap . | . . . . Miscellaneous . | . . . . Route ------- -11/Scrapyard -10/Materials (discovered 4 exits: [*Mat x3] / [*Min]) -10/Mines (discovered 3 exits: [*Mat] / *Exi / [*Sub]) -10/Exiles History --------- Turn | Location | Event 1 | -11/Scrapyard | Discovered new exit (range 0) 1 | -11/Scrapyard | Entered Materials 105 | -10/Materials | Discovered new exit (range 16) 303 | -10/Materials | Build established: Mutant 388 | -10/Materials | Repaired Lgt. Assault Rifle 415 | -10/Materials | Repaired Aluminum Leg 554 | -10/Materials | Discovered new exit (range 14) 561 | -10/Materials | Discovered new exit (range 15) 613 | -10/Materials | Central database locked down 898 | -10/Materials | Discovered new exit (range 15) 1754 | -10/Materials | Entered Mines 1788 | -10/Mines | Learned location of Zion (-6) 2274 | -10/Mines | Discovered new exit (range 12) 2312 | -10/Mines | Discovered new exit (range 7) 2492 | -10/Mines | Deemed a non-threat by the Exiles lab entrance 2494 | -10/Mines | Discovered new exit (range 5) 2502 | -10/Mines | Entered Exiles 2548 | -10/Exiles | Met 8R-AWN 2582 | -10/Exiles | Met EX-HEX 2637 | -10/Exiles | Met EX-BIN 2658 | -10/Exiles | Aligned with FarCom system 2660 | -10/Exiles | Given EX-Vault access code 2704 | -10/Exiles | Opened EX-Vault 2719 | -10/Exiles | Found AWS/Autocannon 2754 | -10/Exiles | Warned to stay clear of 0b10 Research branches 2815 | -10/Exiles | Met EX-DEC 2876 | -10/Exiles | Visited The Gauntlet 3053 | -10/Exiles | Attacked by the Exiles 3074 | -10/Exiles | Core integrity fell below 50% 3086 | -10/Exiles | Crushed by falling debris 3087 | -10/Exiles | Crushed by falling debris 3089 | -10/Exiles | Crushed by falling debris 3089 | -10/Exiles | Smashed by cave-in Last Messages --------------- 02817_ EX-DEC: "Oops, I hope HEX didn't hear that..." 03052_ Machine disabled. 03053_ EXILES: Hostile robot within lab perimeter. Defensive protocols time, folks! 03065_ Lgt. Ion Engine destroyed. 03070_ The unstable cave ceiling collapses. 03086_ Crushed by falling debris. 03086_ Imp. Light Cannon destroyed. 03086_ System corrupted by crushing effect (+2). 03086_ Imp. Light Cannon destroyed. 03086_ System corrupted by crushing effect (+5). 03086_ Seismic Detector destroyed. 03086_ System corrupted by crushing effect (+1). 03087_ The unstable cave ceiling collapses. 03087_ Crushed by falling debris. 03089_ The unstable cave ceiling collapses. 03089_ Crushed by falling debris. 03089_ Aluminum Leg destroyed. 03089_ System corrupted by crushing effect (+4). Map ----- +----------------------------------------------------+ | ??????????????????????????????????????????### | | ????????????????????????????????????????????##### | | ????????????????????????????????????????????????## | | ?????????????????????????????????????????????????# | | ?????????????????????????????????????????????????# | | ?????????????????????????????????????????????????# | | ??????????????????#####??????????????????????????# | | ?????????????????"""""""??????""""?????"""""?????# | | ?????????????????"" ""?????""""""????""""""????# | | ?????????????????" "????""""" "????" """"???# | | ?????????????????"" ""#""#""" """????"" """???# | | ?????????????????"" ""#""#"" ""????"" ""???# | | ???????????########"""###""###"""########"""###### | | ???????????#"""" "" """"""" """""""" """""" | | ???????????#" """""" """"""" | | ???????????#""" | | ???????????#"""" | | ???????????#"" | | ???????????#""" "" "" | | ???????????#"" """ """"" " """"" " """" | | ???????????########"""#####"##"""###""###"""###### | | ?????????????????"" ""####"" ""#""#"" ""???? | | ????????????????#""" """####""" ""#""#""" ""#??? | | ????????????????#" """ "## #" """"""""#" " "#??? | | ?????????????????"""""""#z##"""""""#???"""""""#??? | | ?????????????????"""""""#@#?"""""""#???"""""""#??? | | ????????????????????????###??##"?????????####????? | | ?????????????????????????????????????????????????? | | ?????????????????????????????????????????????????? | | ?????????????????????????????????????????????????? | | ?????????????????????????????????????????????????? | | | | | | | | | | | | | | | | | | | | | | | | | | | | | | | | | | | | | | | +----------------------------------------------------+ Best States ------------- Heat Dissipation 39 Energy Generation 10 Energy Capacity 325 Matter Stores 300 Matter Capacity 300 Sight Range 16 Terrain Scan Density 10 Power Shielding 33 Evasion (%) 55 Item Schematics ----------------- None Robot Schematics ------------------ None Fabricated ------------ Nothing Repaired ---------- Lgt. Assault Rifle | 36% | -10/Materials Aluminum Leg | 81% | -10/Materials Studied --------- None Alien Tech Used ----------------- None Achievements -------------- DATA ERROR: Steam Global Achievement% For Emergencies Only Myspace Organ Harvest Sixth Sense Challenges ------------ None Game ------ Seed ArcsightBombardmentExpander Manual? 0 Play Time 00:19:07 Cumulative 31.6 hours Start 2025.10.25 @ 06:41:53 End 2025.10.25 @ 07:02:41 Sessions 1 Manual Loads 0 Difficulty Rogue Special Mode None Game No. 48 Rogue 48 Adventurer 0 Explorer 0 Win Type - Total 1 Types 1/0/0/0/0/0/0/0/0/0 Lore% 33 Gallery% 35 Achievement% 20 Wizard Run 0 Options --------- Layout 1 ASCII 0 Keyboard 0 Movement Numpad Keybinds 0 Fullscreen 2 Font 24/Smallcaps Map View 50x35 Zoom Use 0% Tactical HUD 1 Map Filters NONE Filters NONE Steam 1 RUN: 2367d0c9-85bd-40b4-8481-f79a0cb66676